[Event "*** Titled Tuesday 3|2 Blitz"]
[Site "Chess.com"]
[Date "2015.02.24"]
[Round "7"]
[White "AkshatChandra"]
[Black "LyonBeast"]
[Result "0-1"]
[WhiteElo "2475"]
[BlackElo "2773"]
[TimeControl "180+2"]
[EndTime "12:29:33 PST"]
[Termination "LyonBeast won by resignation"]

1. e4 {[%clk 0:03:00]} 1... c6 {[%clk 0:02:57]} 2. d4 {[%clk 0:03:00.6]} 2... d5
{[%clk 0:02:58.6]} 3. Nc3 {[%clk 0:03:01.6]} 3... dxe4 {[%clk 0:02:58.2]} 4.
Nxe4 {[%clk 0:03:03.5]} 4... Nd7 {[%clk 0:02:59.9]} 5. Nf3 {[%clk 0:02:55.4]}
5... Ngf6 {[%clk 0:02:59.5]} 6. Nxf6+ {[%clk 0:02:28.9]} 6... Nxf6 {[%clk
0:03:01.4]} 7. Be2 {[%clk 0:02:26.3]} 7... Bf5 {[%clk 0:02:59.8]} 8. O-O {[%clk
0:02:27.2]} 8... e6 {[%clk 0:02:59.3]} 9. c4 {[%clk 0:02:27.2]} 9... Bd6 {[%clk
0:02:59.4]} 10. h3 {[%clk 0:02:06.2]} 10... O-O {[%clk 0:02:59.5]} 11. b3 {[%clk
0:01:59.5]} 11... Re8 {[%clk 0:02:55.2]} 12. Bb2 {[%clk 0:02:00.2]} 12... Bc7
{[%clk 0:02:53]} 13. Bd3 {[%clk 0:01:59.2]} 13... Bxd3 {[%clk 0:02:50.1]} 14.
Qxd3 {[%clk 0:02:01.1]} 14... e5 {[%clk 0:02:50.1]} 15. Qc2 {[%clk 0:01:31]}
15... e4 {[%clk 0:02:49.7]} 16. Ne5 {[%clk 0:01:31.5]} 16... c5 {[%clk
0:02:50.8]} 17. Rad1 {[%clk 0:01:26.1]} 17... cxd4 {[%clk 0:02:17]} 18. Bxd4
{[%clk 0:01:25.1]} 18... Qe7 {[%clk 0:02:09.8]} 19. f4 {[%clk 0:01:23.1]} 19...
Rad8 {[%clk 0:02:06.7]} 20. Bb2 {[%clk 0:00:59]} 20... Nh5 {[%clk 0:01:57.9]}
21. Rxd8 {[%clk 0:00:49.3]} 21... Rxd8 {[%clk 0:01:59.8]} 22. c5 {[%clk
0:00:21.3]} 22... f6 {[%clk 0:01:37.5]} 23. Qc4+ {[%clk 0:00:18.4]} 23... Kf8
{[%clk 0:01:38.5]} 24. c6 {[%clk 0:00:15.2]} 24... b5 {[%clk 0:01:32.9]} 25.
Qxb5 {[%clk 0:00:12.7]} 25... fxe5 {[%clk 0:01:32.9]} 26. fxe5+ {[%clk
0:00:13.4]} 26... Kg8 {[%clk 0:01:32.2]} 27. e6 {[%clk 0:00:10.3]} 27... Ng3
{[%clk 0:01:15.7]} 28. Rf7 {[%clk 0:00:06.9]} 28... Rd1+ {[%clk 0:01:15.4]} 29.
Kf2 {[%clk 0:00:07.2]} 29... Rf1+ {[%clk 0:01:16.1]} 30. Qxf1 {[%clk 0:00:07.2]}
30... Qc5+ {[%clk 0:01:15.1]} 31. Ke1 {[%clk 0:00:06]} 31... Ba5+ {[%clk
0:01:10.4]} 32. Kd1 {[%clk 0:00:04.3]} 32... Nxf1 {[%clk 0:01:07.9]} 33. Rxg7+
{[%clk 0:00:04.9]} 33... Kf8 {[%clk 0:01:08.1]} 34. Rf7+ {[%clk 0:00:05.1]}
34... Ke8 {[%clk 0:01:09.1]} 35. Rxf1 {[%clk 0:00:07]} 35... Qd5+ {[%clk
0:01:09.1]} 36. Kc1 {[%clk 0:00:07]} 36... Qd2+ {[%clk 0:01:10.1]} 37. Kb1
{[%clk 0:00:08.7]} 37... Qd3+ {[%clk 0:01:12]} 38. Kc1 {[%clk 0:00:09]} 38...
Bd2+ {[%clk 0:01:12.1]} 39. Kd1 {[%clk 0:00:09.7]} 39... Bc3+ {[%clk 0:01:14]}
40. Kc1 {[%clk 0:00:10.4]} 40... Qd2+ {[%clk 0:01:15.9]} 0-1

[Event "*** Titled Tuesday 3|2 Blitz"]
[Site "Chess.com"]
[Date "2015.02.24"]
[Round "7"]
[White "xtremeungar"]
[Black "MattyDPerrine"]
[Result "1-0"]
[WhiteElo "2277"]
[BlackElo "2051"]
[TimeControl "180+2"]
[EndTime "12:29:43 PST"]
[Termination "xtremeungar won on time"]

1. e4 {[%clk 0:03:00]} 1... c5 {[%clk 0:02:55.9]} 2. Nf3 {[%clk 0:03:00.6]} 2...
e6 {[%clk 0:02:51.2]} 3. d4 {[%clk 0:03:01.3]} 3... cxd4 {[%clk 0:02:53.1]} 4.
Nxd4 {[%clk 0:03:02.8]} 4... Nf6 {[%clk 0:02:52.6]} 5. Nc3 {[%clk 0:03:03.4]}
5... d6 {[%clk 0:02:53.3]} 6. g4 {[%clk 0:03:02.8]} 6... a6 {[%clk 0:02:41.9]}
7. g5 {[%clk 0:03:00.9]} 7... Nfd7 {[%clk 0:02:43]} 8. h4 {[%clk 0:03:01.2]}
8... Nc6 {[%clk 0:02:41.7]} 9. Be3 {[%clk 0:03:01.4]} 9... Qc7 {[%clk
0:02:38.5]} 10. Bg2 {[%clk 0:02:47.4]} 10... Nde5 {[%clk 0:02:34.9]} 11. Qe2
{[%clk 0:02:41.9]} 11... b5 {[%clk 0:02:30.4]} 12. Nxc6 {[%clk 0:02:34.4]} 12...
Nxc6 {[%clk 0:02:31]} 13. O-O-O {[%clk 0:02:32.8]} 13... Bb7 {[%clk 0:02:30.7]}
14. Kb1 {[%clk 0:02:29.3]} 14... Be7 {[%clk 0:02:28.3]} 15. f4 {[%clk
0:02:30.3]} 15... O-O-O {[%clk 0:02:29]} 16. f5 {[%clk 0:02:27]} 16... Ne5
{[%clk 0:02:24.1]} 17. fxe6 {[%clk 0:02:20.3]} 17... fxe6 {[%clk 0:02:25.1]} 18.
Bh3 {[%clk 0:02:21.2]} 18... Qd7 {[%clk 0:01:53.5]} 19. Nd5 {[%clk 0:02:17.4]}
19... Kb8 {[%clk 0:01:49.8]} 20. Qd2 {[%clk 0:01:54.7]} 20... Nc4 {[%clk
0:01:37.1]} 21. Qd4 {[%clk 0:01:46.5]} 21... Nxe3 {[%clk 0:01:35.3]} 22. Qxe3
{[%clk 0:01:48.4]} 22... Rhe8 {[%clk 0:01:25.2]} 23. Rhf1 {[%clk 0:01:41]} 23...
Bf8 {[%clk 0:01:24.5]} 24. Qb3 {[%clk 0:01:31]} 24... Qc6 {[%clk 0:01:13.4]} 25.
Nc3 {[%clk 0:01:21.2]} 25... Qc4 {[%clk 0:00:45]} 26. Rf7 {[%clk 0:01:12.9]}
26... Qxb3 {[%clk 0:00:35]} 27. axb3 {[%clk 0:01:14.8]} 27... b4 {[%clk
0:00:33.4]} 28. Na4 {[%clk 0:01:10]} 28... Bxe4 {[%clk 0:00:29.7]} 29. Rd4
{[%clk 0:01:10.6]} 29... d5 {[%clk 0:00:17.7]} 30. Rxf8 {[%clk 0:00:45.1]} 30...
Rxf8 {[%clk 0:00:17.4]} 31. Rxb4+ {[%clk 0:00:47]} 31... Ka7 {[%clk 0:00:14.6]}
32. Nc5 {[%clk 0:00:44.3]} 32... Rf3 {[%clk 0:00:06.6]} 33. Bxe6 {[%clk
0:00:33.5]} 1-0

[Event "*** Titled Tuesday 3|2 Blitz"]
[Site "Chess.com"]
[Date "2015.02.24"]
[Round "7"]
[White "LADIESGET2KNOWME"]
[Black "Chesseducation4u"]
[Result "1/2-1/2"]
[WhiteElo "2292"]
[BlackElo "2223"]
[TimeControl "180+2"]
[EndTime "12:29:44 PST"]
[Termination "Game drawn by agreement"]

1. d4 {[%clk 0:03:00]} 1... Nf6 {[%clk 0:02:58.1]} 2. Nc3 {[%clk 0:03:00.9]}
2... g6 {[%clk 0:02:59.4]} 3. e4 {[%clk 0:03:00.7]} 3... d6 {[%clk 0:03:00.6]}
4. f3 {[%clk 0:03:01.1]} 4... Bg7 {[%clk 0:03:00.4]} 5. Be3 {[%clk 0:03:02.6]}
5... a6 {[%clk 0:03:00.4]} 6. Qd2 {[%clk 0:03:02.4]} 6... b5 {[%clk 0:03:00.3]}
7. g4 {[%clk 0:03:02.2]} 7... h5 {[%clk 0:02:51.2]} 8. g5 {[%clk 0:03:02.8]}
8... Nfd7 {[%clk 0:02:51.3]} 9. f4 {[%clk 0:03:02.7]} 9... Bb7 {[%clk
0:02:49.7]} 10. Bd3 {[%clk 0:02:59.9]} 10... Nc6 {[%clk 0:02:38]} 11. Nce2
{[%clk 0:02:56.7]} 11... e6 {[%clk 0:02:18.6]} 12. Nf3 {[%clk 0:02:55.2]} 12...
Ne7 {[%clk 0:02:18.9]} 13. a4 {[%clk 0:02:52.8]} 13... c6 {[%clk 0:02:15.1]} 14.
c3 {[%clk 0:02:48.4]} 14... Qc7 {[%clk 0:02:15.9]} 15. h4 {[%clk 0:02:47.3]}
15... c5 {[%clk 0:02:04.4]} 16. axb5 {[%clk 0:02:45.3]} 16... axb5 {[%clk
0:02:03.8]} 17. Rxa8+ {[%clk 0:02:45.4]} 17... Bxa8 {[%clk 0:02:04.6]} 18. Ng3
{[%clk 0:02:41.4]} 18... c4 {[%clk 0:01:57.7]} 19. Bc2 {[%clk 0:02:41.7]} 19...
d5 {[%clk 0:01:58.6]} 20. e5 {[%clk 0:02:39.4]} 20... Nf5 {[%clk 0:01:41.2]} 21.
Kf2 {[%clk 0:02:26.5]} 21... Ke7 {[%clk 0:01:35.2]} 22. Ra1 {[%clk 0:02:26.9]}
22... Bb7 {[%clk 0:01:30.4]} 23. Qc1 {[%clk 0:02:22.6]} 23... Ra8 {[%clk
0:01:28.2]} 24. Rxa8 {[%clk 0:02:21.9]} 24... Bxa8 {[%clk 0:01:30.1]} 25. Qa1
{[%clk 0:02:23.3]} 25... Bc6 {[%clk 0:01:31.5]} 26. Qa3+ {[%clk 0:02:22.6]}
26... Ke8 {[%clk 0:01:32.5]} 27. Qa6 {[%clk 0:01:59.5]} 27... Bf8 {[%clk
0:01:28.1]} 28. Bd2 {[%clk 0:01:54.8]} 28... Be7 {[%clk 0:01:27.8]} 29. Nf1
{[%clk 0:01:42.5]} 29... Qb6 {[%clk 0:01:21.2]} 30. Qxb6 {[%clk 0:01:31.7]}
30... Nxb6 {[%clk 0:01:23.1]} 31. Ne3 {[%clk 0:01:27.7]} 31... Nxe3 {[%clk
0:01:16.4]} 32. Kxe3 {[%clk 0:01:27.5]} 32... Kd7 {[%clk 0:01:17.5]} 33. Ng1
{[%clk 0:01:20.3]} 33... Na8 {[%clk 0:01:07.1]} 34. Ne2 {[%clk 0:01:21.1]} 34...
Nc7 {[%clk 0:01:06.1]} 35. Nc1 {[%clk 0:01:15.5]} 35... Na6 {[%clk 0:01:05]} 36.
b4 {[%clk 0:01:13.2]} 36... Nc7 {[%clk 0:00:40.3]} 37. Ne2 {[%clk 0:01:13.9]}
37... Ne8 {[%clk 0:00:41.4]} 38. Ng3 {[%clk 0:01:13.5]} 38... Ng7 {[%clk
0:00:41.9]} 39. Bd1 {[%clk 0:01:10.9]} 39... Bb7 {[%clk 0:00:42.2]} 40. Kf3
{[%clk 0:01:06]} 40... Bc6 {[%clk 0:00:43.1]} 41. Ke3 {[%clk 0:00:52.9]} 1/2-1/2

[Event "*** Titled Tuesday 3|2 Blitz"]
[Site "Chess.com"]
[Date "2015.02.24"]
[Round "7"]
[White "pKiLz5Rn9b"]
[Black "bsmail"]
[Result "0-1"]
[WhiteElo "2234"]
[BlackElo "2112"]
[TimeControl "180+2"]
[EndTime "12:30:03 PST"]
[Termination "bsmail won by resignation"]

1. b3 {[%clk 0:02:59.5]} 1... e5 {[%clk 0:02:58.7]} 2. Bb2 {[%clk 0:03:01.4]}
2... Nc6 {[%clk 0:03:00.2]} 3. e3 {[%clk 0:03:03.1]} 3... Nf6 {[%clk 0:02:59.9]}
4. Bb5 {[%clk 0:03:03.6]} 4... e4 {[%clk 0:03:00.4]} 5. Ne2 {[%clk 0:03:04.2]}
5... Bc5 {[%clk 0:02:59]} 6. O-O {[%clk 0:03:05.4]} 6... O-O {[%clk 0:02:54.2]}
7. f4 {[%clk 0:03:06.5]} 7... exf3 {[%clk 0:02:54.9]} 8. Rxf3 {[%clk 0:03:07.1]}
8... d6 {[%clk 0:02:44.7]} 9. Nf4 {[%clk 0:03:07.4]} 9... Bg4 {[%clk 0:02:44]}
10. Bxc6 {[%clk 0:03:05]} 10... bxc6 {[%clk 0:02:41.8]} 11. Nc3 {[%clk 0:03:06]}
11... Bxf3 {[%clk 0:02:39]} 12. Qxf3 {[%clk 0:03:04.9]} 12... d5 {[%clk
0:02:39]} 13. Rf1 {[%clk 0:02:59.9]} 13... Qe7 {[%clk 0:02:35.4]} 14. Na4 {[%clk
0:02:44.8]} 14... Bd6 {[%clk 0:02:32.9]} 15. Nh5 {[%clk 0:02:44.7]} 15... Nxh5
{[%clk 0:02:26.4]} 16. Qxh5 {[%clk 0:02:43.7]} 16... f6 {[%clk 0:02:23.5]} 17.
Rf3 {[%clk 0:02:44]} 17... Be5 {[%clk 0:02:20.2]} 18. Rh3 {[%clk 0:02:34.3]}
18... g6 {[%clk 0:02:13.4]} 19. Ba3 {[%clk 0:02:35.2]} 19... Bd6 {[%clk
0:02:10.1]} 20. Bxd6 {[%clk 0:02:33.2]} 20... cxd6 {[%clk 0:02:12]} 21. Qg4
{[%clk 0:02:32.8]} 21... f5 {[%clk 0:02:09.2]} 22. Qf4 {[%clk 0:02:31.1]} 22...
Qe5 {[%clk 0:02:06.3]} 23. Qh6 {[%clk 0:02:30.4]} 23... Rf7 {[%clk 0:02:07.6]}
24. Nc3 {[%clk 0:02:28.1]} 24... d4 {[%clk 0:02:06.2]} 25. Ne2 {[%clk
0:02:27.4]} 25... dxe3 {[%clk 0:02:05.8]} 26. Rxe3 {[%clk 0:02:28.5]} 26... Qa1+
{[%clk 0:02:00]} 27. Kf2 {[%clk 0:02:28.8]} 27... Qg7 {[%clk 0:02:00.3]} 28. Qf4
{[%clk 0:02:29.2]} 28... Qf6 {[%clk 0:01:59.4]} 29. Rd3 {[%clk 0:02:24.8]} 29...
d5 {[%clk 0:01:52.4]} 30. Nd4 {[%clk 0:02:25.9]} 30... Re8 {[%clk 0:01:47.9]}
31. Nf3 {[%clk 0:02:24.3]} 31... Qe6 {[%clk 0:01:28.3]} 32. Re3 {[%clk
0:02:16.1]} 32... Qd7 {[%clk 0:01:27.2]} 33. Ne5 {[%clk 0:02:17.2]} 33... Qc7
{[%clk 0:01:23.3]} 34. Qd4 {[%clk 0:02:08.8]} 34... Rfe7 {[%clk 0:01:19]} 35.
Nf3 {[%clk 0:02:09.9]} 35... Rxe3 {[%clk 0:01:18.8]} 36. dxe3 {[%clk 0:02:10.7]}
36... Qb6 {[%clk 0:01:16.5]} 37. Qf4 {[%clk 0:02:10]} 37... Re4 {[%clk
0:01:09.1]} 38. Qh6 {[%clk 0:02:08.8]} 38... f4 {[%clk 0:01:04.5]} 39. h3 {[%clk
0:01:53.9]} 39... Qxe3+ {[%clk 0:01:02.9]} 40. Kf1 {[%clk 0:01:54.8]} 40... Qc1+
{[%clk 0:00:55.5]} 41. Kf2 {[%clk 0:01:54.5]} 41... Qxc2+ {[%clk 0:00:47.1]} 42.
Kg1 {[%clk 0:01:55.2]} 42... Qc5+ {[%clk 0:00:32.4]} 43. Kh2 {[%clk 0:01:55.4]}
43... Qf8 {[%clk 0:00:30.9]} 44. Qh4 {[%clk 0:01:54.9]} 44... Re2 {[%clk
0:00:23.2]} 45. Ng5 {[%clk 0:01:52.9]} 45... h5 {[%clk 0:00:22.7]} 46. Nf3
{[%clk 0:01:52.3]} 46... Kg7 {[%clk 0:00:21.6]} 47. Qg5 {[%clk 0:01:53]} 47...
Qf5 {[%clk 0:00:20.4]} 48. Qd8 {[%clk 0:01:52.6]} 48... Qe4 {[%clk 0:00:17.1]}
49. Kh1 {[%clk 0:01:46.2]} 49... Rxg2 {[%clk 0:00:15.2]} 50. Kxg2 {[%clk
0:01:47.4]} 50... Qe2+ {[%clk 0:00:16.1]} 51. Kg1 {[%clk 0:01:48.9]} 51... Qxf3
{[%clk 0:00:17.4]} 52. Qe7+ {[%clk 0:01:50.4]} 52... Kg8 {[%clk 0:00:15.9]} 53.
Qe8+ {[%clk 0:01:51.7]} 53... Kg7 {[%clk 0:00:17.1]} 54. Qe7+ {[%clk 0:01:53.2]}
54... Kh6 {[%clk 0:00:17.2]} 55. h4 {[%clk 0:01:52.4]} 55... Qe3+ {[%clk
0:00:16.3]} 56. Qxe3 {[%clk 0:01:51.2]} 56... fxe3 {[%clk 0:00:18.2]} 57. Kf1
{[%clk 0:01:52.9]} 57... g5 {[%clk 0:00:19.5]} 0-1

[Event "*** Titled Tuesday 3|2 Blitz"]
[Site "Chess.com"]
[Date "2015.02.24"]
[Round "7"]
[White "AlexanderL"]
[Black "gmjlh"]
[Result "0-1"]
[WhiteElo "2502"]
[BlackElo "2505"]
[TimeControl "180+2"]
[EndTime "12:30:28 PST"]
[Termination "gmjlh won by resignation"]

1. g3 {[%clk 0:03:00]} 1... d5 {[%clk 0:02:57.9]} 2. Bg2 {[%clk 0:03:01.9]} 2...
e5 {[%clk 0:02:58.7]} 3. d3 {[%clk 0:03:03.2]} 3... Nf6 {[%clk 0:02:59.2]} 4.
Bg5 {[%clk 0:03:03.6]} 4... Be7 {[%clk 0:02:59.6]} 5. c4 {[%clk 0:02:58.9]} 5...
dxc4 {[%clk 0:02:59.8]} 6. Qa4+ {[%clk 0:02:59.8]} 6... c6 {[%clk 0:02:55.4]} 7.
Qxc4 {[%clk 0:02:58.9]} 7... Qb6 {[%clk 0:02:53.8]} 8. Qc2 {[%clk 0:02:56.9]}
8... Ng4 {[%clk 0:02:47.2]} 9. Be3 {[%clk 0:02:41.2]} 9... Nxe3 {[%clk
0:02:47.7]} 10. fxe3 {[%clk 0:02:43.1]} 10... Qxe3 {[%clk 0:02:49.1]} 11. Nf3
{[%clk 0:02:42.6]} 11... O-O {[%clk 0:02:48.7]} 12. Nbd2 {[%clk 0:02:43.4]}
12... f6 {[%clk 0:02:45.3]} 13. Qb3+ {[%clk 0:02:38.5]} 13... Kh8 {[%clk
0:02:45.4]} 14. Nc4 {[%clk 0:02:36.5]} 14... Qc5 {[%clk 0:02:45.7]} 15. Rf1
{[%clk 0:02:32.2]} 15... Na6 {[%clk 0:02:38.7]} 16. a3 {[%clk 0:02:32.1]} 16...
Rb8 {[%clk 0:02:31.6]} 17. Qc3 {[%clk 0:02:29.4]} 17... Be6 {[%clk 0:02:25.2]}
18. Nfd2 {[%clk 0:02:30.3]} 18... Qb5 {[%clk 0:02:16.5]} 19. Rc1 {[%clk
0:02:29.7]} 19... Nc5 {[%clk 0:02:07.4]} 20. b4 {[%clk 0:02:28.4]} 20... Na4
{[%clk 0:02:08.2]} 21. Qc2 {[%clk 0:02:28.8]} 21... Nb6 {[%clk 0:01:54.4]} 22.
Be4 {[%clk 0:02:28.4]} 22... Bg8 {[%clk 0:01:47.6]} 23. Ne3 {[%clk 0:02:26.3]}
23... Rfd8 {[%clk 0:01:47.3]} 24. Ndc4 {[%clk 0:02:22.5]} 24... Qa4 {[%clk
0:01:38.9]} 25. Qb2 {[%clk 0:02:11.2]} 25... Nxc4 {[%clk 0:01:40]} 26. dxc4
{[%clk 0:02:11.3]} 26... a5 {[%clk 0:01:41.1]} 27. Nf5 {[%clk 0:02:11.4]} 27...
Bf8 {[%clk 0:01:39.8]} 28. c5 {[%clk 0:02:12.5]} 28... axb4 {[%clk 0:01:39.8]}
29. axb4 {[%clk 0:02:13.4]} 29... b6 {[%clk 0:01:30.2]} 30. Bc2 {[%clk
0:02:08.2]} 30... Qa7 {[%clk 0:01:22.5]} 31. Ra1 {[%clk 0:02:04]} 31... Qc7
{[%clk 0:01:23.5]} 32. Bb3 {[%clk 0:01:56.1]} 32... Bxb3 {[%clk 0:01:13.4]} 33.
Qxb3 {[%clk 0:01:55.7]} 33... bxc5 {[%clk 0:01:15.1]} 34. Qe6 {[%clk 0:01:54.6]}
34... cxb4 {[%clk 0:01:11.6]} 35. Rb1 {[%clk 0:01:55.6]} 35... Qd7 {[%clk
0:01:11.8]} 36. Qc4 {[%clk 0:01:55]} 36... Qd5 {[%clk 0:01:09.2]} 37. Qg4 {[%clk
0:01:53.4]} 37... b3 {[%clk 0:01:06.3]} 38. Kf2 {[%clk 0:01:51.6]} 38... b2
{[%clk 0:01:06.6]} 39. Kg1 {[%clk 0:01:51.9]} 39... Rb4 {[%clk 0:01:07.4]} 40.
Qh3 {[%clk 0:01:51.3]} 40... Qe4 {[%clk 0:00:58]} 41. e3 {[%clk 0:01:51.4]}
41... Rd2 {[%clk 0:00:53.6]} 42. Nh4 {[%clk 0:01:51.5]} 42... Qxe3+ {[%clk
0:00:51.1]} 43. Kh1 {[%clk 0:01:52.3]} 43... Qe4+ {[%clk 0:00:50.7]} 44. Nf3
{[%clk 0:01:53.4]} 44... Rf2 {[%clk 0:00:45.2]} 45. Rxf2 {[%clk 0:01:50.9]}
45... Qxb1+ {[%clk 0:00:45.9]} 46. Kg2 {[%clk 0:01:49.5]} 46... Qg6 {[%clk
0:00:41.8]} 47. Qc8 {[%clk 0:01:47.8]} 47... Kg8 {[%clk 0:00:41.7]} 48. Ng5
{[%clk 0:01:26]} 48... b1=Q {[%clk 0:00:27.4]} 49. Qe6+ {[%clk 0:01:25.2]} 49...
Kh8 {[%clk 0:00:28.6]} 50. Nf7+ {[%clk 0:01:26.1]} 50... Qxf7 {[%clk 0:00:28.6]}
51. Qxf7 {[%clk 0:01:27.4]} 51... Qe4+ {[%clk 0:00:30.2]} 52. Kh3 {[%clk
0:01:28.7]} 52... Qg4+ {[%clk 0:00:29.4]} 53. Kg2 {[%clk 0:01:29.2]} 53... Qe4+
{[%clk 0:00:30.8]} 54. Kh3 {[%clk 0:01:30.2]} 54... Rb8 {[%clk 0:00:31.8]} 55.
Rd2 {[%clk 0:01:31.1]} 55... Qg6 {[%clk 0:00:29.9]} 56. Qc7 {[%clk 0:01:30.9]}
56... Qe8 {[%clk 0:00:29.8]} 57. Rd7 {[%clk 0:01:28.7]} 57... Rc8 {[%clk
0:00:30.7]} 58. Qb7 {[%clk 0:01:29.9]} 58... e4 {[%clk 0:00:29.2]} 0-1

[Event "*** Titled Tuesday 3|2 Blitz"]
[Site "Chess.com"]
[Date "2015.02.24"]
[Round "7"]
[White "DanielNaroditsky"]
[Black "chito89"]
[Result "1-0"]
[WhiteElo "2585"]
[BlackElo "2577"]
[TimeControl "180+2"]
[EndTime "12:30:32 PST"]
[Termination "DanielNaroditsky won on time"]

1. e4 {[%clk 0:03:00]} 1... g6 {[%clk 0:02:58.1]} 2. d4 {[%clk 0:02:59.8]} 2...
Bg7 {[%clk 0:02:59]} 3. Nc3 {[%clk 0:03:01.5]} 3... d6 {[%clk 0:03:00]} 4. f4
{[%clk 0:03:01.9]} 4... Nf6 {[%clk 0:02:59.9]} 5. Nf3 {[%clk 0:03:03]} 5... O-O
{[%clk 0:03:01]} 6. Bd3 {[%clk 0:03:02.5]} 6... Nc6 {[%clk 0:03:01.5]} 7. e5
{[%clk 0:03:01.6]} 7... dxe5 {[%clk 0:03:02.3]} 8. fxe5 {[%clk 0:03:02.1]} 8...
Nd5 {[%clk 0:03:03.8]} 9. O-O {[%clk 0:02:52.4]} 9... Nb6 {[%clk 0:02:39.2]} 10.
Ne2 {[%clk 0:02:52.2]} 10... Bg4 {[%clk 0:02:33.7]} 11. c3 {[%clk 0:02:53.1]}
11... f6 {[%clk 0:02:30.4]} 12. exf6 {[%clk 0:02:53.6]} 12... exf6 {[%clk
0:02:30.6]} 13. h3 {[%clk 0:02:54.2]} 13... Be6 {[%clk 0:02:27.1]} 14. Nf4
{[%clk 0:02:53.8]} 14... Bf7 {[%clk 0:02:28.4]} 15. Nh2 {[%clk 0:02:45.3]} 15...
Qd7 {[%clk 0:02:19.9]} 16. Ng4 {[%clk 0:02:45.1]} 16... f5 {[%clk 0:02:14.1]}
17. Ne3 {[%clk 0:02:43.7]} 17... Rfe8 {[%clk 0:02:14.8]} 18. Qf3 {[%clk
0:02:43.7]} 18... Rad8 {[%clk 0:02:14.8]} 19. g4 {[%clk 0:02:42.5]} 19... fxg4
{[%clk 0:02:01.7]} 20. hxg4 {[%clk 0:02:42.6]} 20... Bh6 {[%clk 0:01:54.2]} 21.
Qg3 {[%clk 0:02:35.8]} 21... Qe7 {[%clk 0:01:40.7]} 22. Bd2 {[%clk 0:02:02.4]}
22... Bg5 {[%clk 0:01:41.1]} 23. Rf3 {[%clk 0:01:43.6]} 23... Qd6 {[%clk
0:00:58.4]} 24. Raf1 {[%clk 0:01:38.1]} 24... Bxa2 {[%clk 0:00:58.8]} 25. Qg2
{[%clk 0:01:28.1]} 25... Rf8 {[%clk 0:00:54.5]} 26. Nf5 {[%clk 0:01:25.4]} 26...
Qd7 {[%clk 0:00:43.5]} 27. Ne6 {[%clk 0:01:13]} 27... Bxe6 {[%clk 0:00:40.7]}
28. Bxg5 {[%clk 0:01:13]} 28... Bd5 {[%clk 0:00:22.4]} 29. Nh6+ {[%clk
0:00:50.9]} 29... Kg7 {[%clk 0:00:23.6]} 30. Rxf8 {[%clk 0:00:52.1]} 30... Rxf8
{[%clk 0:00:25.2]} 31. Rxf8 {[%clk 0:00:52.4]} 31... Kxf8 {[%clk 0:00:26]} 32.
Qf2+ {[%clk 0:00:54]} 32... Ke8 {[%clk 0:00:26.9]} 33. Qf6 {[%clk 0:00:54.6]}
33... Qd6 {[%clk 0:00:16.9]} 34. Qh8+ {[%clk 0:00:54.9]} 34... Kd7 {[%clk
0:00:18.6]} 35. Qxh7+ {[%clk 0:00:55.9]} 35... Kc8 {[%clk 0:00:20.2]} 36. Qh8+
{[%clk 0:00:55.1]} 36... Kd7 {[%clk 0:00:21.5]} 37. Qg7+ {[%clk 0:00:43.4]}
37... Kc8 {[%clk 0:00:22.6]} 38. Bh4 {[%clk 0:00:29.7]} 38... Qf4 {[%clk
0:00:16.9]} 39. Qh8+ {[%clk 0:00:30.9]} 39... Kd7 {[%clk 0:00:17.5]} 40. Qg7+
{[%clk 0:00:32.5]} 40... Kc8 {[%clk 0:00:18.7]} 41. Qxg6 {[%clk 0:00:28]} 41...
Qc1+ {[%clk 0:00:17.1]} 42. Bf1 {[%clk 0:00:29.1]} 42... Nc4 {[%clk 0:00:13.4]}
43. Qe8+ {[%clk 0:00:29.9]} 1-0

[Event "*** Titled Tuesday 3|2 Blitz"]
[Site "Chess.com"]
[Date "2015.02.24"]
[Round "7"]
[White "Schemato"]
[Black "Aragon"]
[Result "1-0"]
[WhiteElo "2072"]
[BlackElo "2036"]
[TimeControl "180+2"]
[EndTime "12:30:33 PST"]
[Termination "Schemato won by resignation"]

1. c4 {[%clk 0:02:53.7]} 1... e5 {[%clk 0:02:58.5]} 2. g3 {[%clk 0:02:52.1]}
2... Nf6 {[%clk 0:02:59]} 3. Bg2 {[%clk 0:02:51.1]} 3... d5 {[%clk 0:03:00.1]}
4. cxd5 {[%clk 0:02:51.8]} 4... Nxd5 {[%clk 0:03:01.1]} 5. Nf3 {[%clk
0:02:53.3]} 5... Nc6 {[%clk 0:02:58.4]} 6. O-O {[%clk 0:02:54.7]} 6... Be7
{[%clk 0:02:58.7]} 7. d4 {[%clk 0:02:55.5]} 7... e4 {[%clk 0:02:57.3]} 8. Ne5
{[%clk 0:02:56.5]} 8... f5 {[%clk 0:02:51.4]} 9. Nxc6 {[%clk 0:02:56.4]} 9...
bxc6 {[%clk 0:02:51.8]} 10. Nc3 {[%clk 0:02:50.3]} 10... O-O {[%clk 0:02:49.3]}
11. Qa4 {[%clk 0:02:46.2]} 11... Qd6 {[%clk 0:02:45.6]} 12. Nxd5 {[%clk
0:02:41]} 12... cxd5 {[%clk 0:02:44.6]} 13. Bf4 {[%clk 0:02:41.9]} 13... Qb6
{[%clk 0:02:35.7]} 14. Rab1 {[%clk 0:02:28.8]} 14... g5 {[%clk 0:02:22.8]} 15.
Be5 {[%clk 0:02:25.9]} 15... Bd6 {[%clk 0:02:24]} 16. Bxd6 {[%clk 0:02:20.9]}
16... cxd6 {[%clk 0:02:18.1]} 17. Rfc1 {[%clk 0:02:16.5]} 17... Bb7 {[%clk
0:02:05.7]} 18. e3 {[%clk 0:02:05.5]} 18... Rac8 {[%clk 0:02:05]} 19. Bh3 {[%clk
0:02:02.1]} 19... Bc6 {[%clk 0:01:51.7]} 20. Qa3 {[%clk 0:01:56.9]} 20... Bd7
{[%clk 0:01:45.7]} 21. b3 {[%clk 0:01:47.7]} 21... h5 {[%clk 0:01:38]} 22. Rxc8
{[%clk 0:01:47.5]} 22... Rxc8 {[%clk 0:01:36.5]} 23. Rc1 {[%clk 0:01:49]} 23...
Rc7 {[%clk 0:01:24.1]} 24. Qb2 {[%clk 0:01:37.9]} 24... Kg7 {[%clk 0:01:19.6]}
25. Rc3 {[%clk 0:01:36.4]} 25... Kf6 {[%clk 0:01:13.4]} 26. Qc2 {[%clk
0:01:34.6]} 26... Rxc3 {[%clk 0:01:07.5]} 27. Qxc3 {[%clk 0:01:35.8]} 27... Be6
{[%clk 0:01:03.6]} 28. Bf1 {[%clk 0:01:34.6]} 28... a5 {[%clk 0:01:03.5]} 29.
Qc2 {[%clk 0:01:31.5]} 29... f4 {[%clk 0:00:59.2]} 30. Qe2 {[%clk 0:01:29]}
30... f3 {[%clk 0:00:55.7]} 31. Qa6 {[%clk 0:01:24]} 31... Qb4 {[%clk 0:00:54]}
32. Qa8 {[%clk 0:01:19.4]} 32... Qe1 {[%clk 0:00:44.7]} 33. Qd8+ {[%clk
0:01:15.9]} 33... Kf7 {[%clk 0:00:41.4]} 34. Qxg5 {[%clk 0:01:14.1]} 34... Bg4
{[%clk 0:00:38.1]} 35. h3 {[%clk 0:01:11.6]} 35... Be6 {[%clk 0:00:39.2]} 36.
Qxh5+ {[%clk 0:01:11.9]} 36... Ke7 {[%clk 0:00:41.1]} 37. g4 {[%clk 0:01:10.9]}
37... Qd2 {[%clk 0:00:38.6]} 38. Qh7+ {[%clk 0:01:08.9]} 38... Kd8 {[%clk
0:00:37.8]} 39. Qh8+ {[%clk 0:01:05.4]} 39... Kc7 {[%clk 0:00:35.5]} 40. Qg7+
{[%clk 0:01:01]} 40... Bd7 {[%clk 0:00:26.3]} 41. h4 {[%clk 0:00:46.8]} 41...
Kc6 {[%clk 0:00:24.8]} 42. h5 {[%clk 0:00:41.6]} 42... Qxa2 {[%clk 0:00:23.3]}
43. h6 {[%clk 0:00:39.8]} 43... Qxb3 {[%clk 0:00:20.6]} 44. h7 {[%clk
0:00:40.4]} 44... Bxg4 {[%clk 0:00:20.6]} 45. Qxg4 {[%clk 0:00:38]} 45... a4
{[%clk 0:00:21.4]} 46. Qc8+ {[%clk 0:00:35.2]} 1-0